fUST/lending_fUST_20240511
["ID","MTS","AMOUNT","RATE_DAILY","PERIOD"]
[326785239,1715362244622,-500.0,0.00054794,120]
[326785240,1715362244631,-1030.44,0.00054794,120]
[326785241,1715362244640,-1750.82,0.00054794,120]
[326785242,1715362244649,-500.0,0.00054794,120]
[326785243,1715362244658,-920.98,0.00054794,120]
[326785244,1715362244668,-4180.49,0.00054794,120]
[326785245,1715362244677,-500.0,0.00054794,120]
[326785246,1715362244687,-500.0,0.00054794,120]
[326785247,1715362244696,-500.0,0.00054794,120]
[326785248,1715362244705,-500.0,0.00054794,120]
[326785249,1715362244714,-500.0,0.00054794,120]
[326785250,1715362244723,-500.0,0.00054794,120]
[326785251,1715362244733,-519.15,0.00054794,120]
[326785252,1715362244742,-500.0,0.00054794,120]
[326785253,1715362244750,-1117.61,0.00054794,120]
[326785254,1715362244759,-561.39,0.00054794,120]
[326785255,1715362244769,-500.0,0.00054794,120]
[326785256,1715362244778,-500.0,0.00054794,120]
[326785257,1715362244787,-500.0,0.00054794,120]
[326785258,1715362244796,-500.0,0.00054794,120]
[326785259,1715362244805,-500.0,0.00054794,120]
[326785260,1715362244816,-500.0,0.00054794,120]
[326785261,1715362244825,-4079.45,0.00054794,21]
[326785262,1715362244835,-500.0,0.00054794,120]
[326785263,1715362244844,-500.0,0.00054794,120]
[326785264,1715362244853,-209.84729948,0.00054794,120]
[326785265,1715362244862,-500.0,0.00054794,120]
[326785266,1715362244871,-500.0,0.00054794,120]
[326785267,1715362244880,-863.73,0.00054794,120]
[326785268,1715362244890,-1295.32,0.00054794,120]
[326785269,1715362244899,-500.0,0.00054794,120]
[326785270,1715362244908,-616.34,0.00054794,60]
[326785271,1715362244917,-500.0,0.00054794,120]
[326785272,1715362244926,-500.0,0.00054794,120]
[326785273,1715362244936,-500.0,0.00054794,120]
[326785274,1715362244945,-500.0,0.00054794,120]
[326785275,1715362244954,-500.0,0.00054794,120]
[326785276,1715362244963,-500.0,0.00054794,120]
[326785277,1715362244973,-500.0,0.00054794,120]
[326785278,1715362244982,-3518.52,0.00054794,2]
[326785279,1715362244991,-500.0,0.00054794,120]
[326785280,1715362245000,-500.0,0.00054794,120]
[326785281,1715362245010,-500.0,0.00054794,120]
[326785282,1715362245019,-636.93,0.00054794,120]
[326785283,1715362245028,-4866.82,0.00054794,120]
[326785284,1715362245037,-1318.27,0.00054794,2]
[326785285,1715362245047,-500.0,0.00054794,120]
[326785286,1715362245056,-500.0,0.00054794,120]
[326785287,1715362245067,-500.0,0.00054794,120]
[326785288,1715362245076,-500.0,0.00054794,120]
[326785289,1715362245087,-500.0,0.00054794,120]
[326785290,1715362245098,-500.0,0.00054794,120]
[326785291,1715362245108,-1473.71,0.00054794,120]
[326785292,1715362245117,-2769.91,0.00054794,120]
[326785293,1715362245126,-500.0,0.00054794,120]
[326785294,1715362245137,-500.0,0.00054794,120]
[326785295,1715362245147,-500.0,0.00054794,120]
[326785296,1715362245156,-500.0,0.00054794,120]
[326785297,1715362245167,-500.0,0.00054794,120]
[326785298,1715362245177,-500.0,0.00054794,120]
[326785299,1715362245186,-1500.44,0.00054794,120]
[326785300,1715362245195,-500.0,0.00054794,120]
[326785301,1715362245205,-500.0,0.00054794,120]
[326785302,1715362245214,-500.0,0.00054794,120]
[326785303,1715362245224,-500.0,0.00054794,120]
[326785304,1715362245233,-567.22,0.00054794,120]
[326785305,1715362245242,-500.0,0.00054794,120]
[326785306,1715362245252,-500.0,0.00054794,120]
[326785307,1715362245261,-500.0,0.00054794,120]
[326785308,1715362245270,-500.0,0.00054794,120]
[326785309,1715362245279,-500.0,0.00054794,120]
[326785310,1715362245289,-500.0,0.00054794,120]
[326785311,1715362245298,-500.0,0.00054794,120]
[326785312,1715362245307,-247.95359707,0.00054794,120]
[326785313,1715362245317,-500.0,0.00054794,120]
[326785314,1715362245326,-500.0,0.00054794,120]
[326785315,1715362245336,-628.02,0.00054794,120]
[326785316,1715362245346,-2902.23,0.00054794,120]
[326785317,1715362245355,-500.0,0.00054794,120]
[326785318,1715362245364,-2569.56,0.00054794,120]
[326785319,1715362245374,-1499.69,0.00054794,120]
[326785320,1715362245383,-500.0,0.00054794,120]
[326785321,1715362245393,-4341.8,0.00054794,120]
[326785322,1715362245402,-500.0,0.00054794,120]
[326785323,1715362245413,-500.0,0.00054794,120]
[326785324,1715362245422,-500.0,0.00054794,120]
[326785325,1715362245431,-1307.35,0.00054794,120]
[326785326,1715362245441,-500.0,0.00054794,120]
[326785327,1715362245451,-526.38,0.00054794,120]
[326785328,1715362245460,-500.0,0.00054794,120]
[326785329,1715362245469,-500.0,0.00054794,120]
[326785330,1715362245478,-691.88,0.00054794,120]
[326785331,1715362245487,-500.0,0.00054794,120]
[326785332,1715362245496,-757.83,0.00054794,120]
[326785333,1715362245505,-420.27428809,0.00054794,120]
[326785334,1715362245514,-434.84710876,0.00054794,120]
[326785335,1715362245523,-971.34,0.00054794,120]
[326785336,1715362245532,-27655.02,0.00054794,120]
[326785337,1715362245542,-703.41,0.00054794,120]
[326785338,1715362245551,-172.43488478,0.00054794,120]
[326785339,1715362245561,-500.0,0.00054794,120]
[326785340,1715362245570,-500.0,0.00054794,120]
[326785341,1715362245579,-500.0,0.00054794,120]
[326785342,1715362245588,-500.0,0.00054794,120]
[326785343,1715362245598,-500.0,0.00054794,120]
[326785344,1715362245608,-500.0,0.00054794,120]
[326785345,1715362245618,-657.23,0.00054794,120]
[326785346,1715362245627,-657.23,0.00054794,120]
[326785347,1715362245636,-500.0,0.00054794,120]
[326785348,1715362245646,-657.23,0.00054794,120]
[326785349,1715362245655,-657.23,0.00054794,120]
[326785350,1715362245742,-657.23,0.00054794,120]
[326785351,1715362245751,-500.0,0.00054794,120]
[326785352,1715362245760,-657.23,0.00054794,120]
[326785353,1715362245770,-657.23,0.00054794,120]
[326785354,1715362245780,-657.23,0.00054794,120]
[326785355,1715362245789,-500.0,0.00054794,120]
[326785356,1715362245798,-657.23,0.00054794,120]
[326785357,1715362245807,-657.23,0.00054794,120]
[326785358,1715362245817,-500.0,0.00054794,120]
[326785359,1715362245828,-657.23,0.00054794,120]
[326785360,1715362245838,-657.23,0.00054794,120]
[326785361,1715362245847,-500.0,0.00054794,120]
[326785362,1715362245856,-657.23,0.00054794,120]
[326785363,1715362245866,-657.23,0.00054794,120]
[326785364,1715362245875,-657.23,0.00054794,120]
[326785365,1715362245884,-657.23,0.00054794,120]
[326785366,1715362245894,-657.23,0.00054794,120]
[326785367,1715362245903,-657.23,0.00054794,120]
[326785368,1715362245913,-657.23,0.00054794,120]
[326785369,1715362245922,-657.23,0.00054794,120]
[326785370,1715362245931,-657.23,0.00054794,120]
[326785371,1715362245940,-657.23,0.00054794,120]
[326785372,1715362245949,-657.23,0.00054794,120]
[326785373,1715362245959,-710.73,0.00054794,120]
[326785374,1715362245968,-657.27681275,0.00054794,120]
[326785375,1715362245977,-696.91,0.00054794,120]
[326785376,1715362245986,-1949.33,0.00054794,120]
[326785377,1715362245995,-1535.42,0.00054794,120]
[326785378,1715362246005,-1363.09,0.00054794,120]
[326785379,1715362246015,-500.0,0.00054794,120]
[326785380,1715362246025,-500.0,0.00054794,120]
[326785381,1715362246034,-787.26,0.00054794,120]
[326785382,1715362246043,-504.5,0.00054794,120]
[326785383,1715362246052,-500.0,0.00054794,120]
[326785385,1715362246064,-500.0,0.00054794,120]
[326785387,1715362246073,-352.76004208,0.00054794,2]
[326785389,1715362246083,-500.0,0.00054794,120]
[326785391,1715362246094,-1348.72,0.00054794,120]
[326785393,1715362246106,-500.0,0.00054794,120]
[326785395,1715362246116,-500.0,0.00054794,120]
[326785397,1715362246126,-500.0,0.00054794,120]
[326785399,1715362246135,-500.0,0.00054794,120]
[326785401,1715362246145,-4426.76,0.00054794,120]
[326785403,1715362246154,-500.0,0.00054794,120]
[326785405,1715362246163,-500.0,0.00054794,120]
[326785407,1715362246175,-500.0,0.00054794,120]
[326785409,1715362246184,-500.0,0.00054794,120]
[326785411,1715362246193,-500.0,0.00054794,120]
[326785413,1715362246202,-500.0,0.00054794,120]
[326785415,1715362246211,-572.77,0.00054794,120]
[326785417,1715362246220,-500.0,0.00054794,120]
[326785419,1715362246229,-1033.63,0.00054794,120]
[326785436,1715362246431,-509.52,0.00054794,2]
[326785438,1715362246441,-500.0,0.00054794,120]
[326785440,1715362246451,-10005.59,0.00054794,120]
[326785442,1715362246460,-500.0,0.00054794,120]
[326785444,1715362246470,-500.0,0.00054794,120]
[326785446,1715362246479,-643.84,0.00054794,120]
[326785447,1715362246488,-849.76,0.00054794,120]
[326785448,1715362246497,-500.0,0.00054794,120]
[326785449,1715362246506,-4585.66,0.00054794,120]
[326785450,1715362246515,-500.0,0.00054794,120]
[326785452,1715362246525,-500.0,0.00054794,120]
[326785454,1715362246534,-500.0,0.00054794,120]
[326785456,1715362246543,-606.74,0.00054794,120]
[326785458,1715362246552,-500.0,0.00054794,120]
[326785460,1715362246562,-656.73,0.00054794,120]
[326785461,1715362246571,-500.0,0.00054794,120]
[326785463,1715362246581,-500.0,0.00054794,120]
[326785465,1715362246590,-1209.29,0.00054794,120]
[326785467,1715362246601,-500.0,0.00054794,120]
[326785469,1715362246610,-500.0,0.00054794,30]
[326785470,1715362246619,-511.02,0.00054794,120]
[326785471,1715362246628,-500.0,0.00054794,120]
[326785472,1715362246637,-547.47,0.00054794,120]
[326785473,1715362246646,-500.0,0.00054794,120]
[326785474,1715362246655,-500.0,0.00054794,120]
[326785475,1715362246664,-500.0,0.00054794,120]
[326785476,1715362246673,-500.0,0.00054794,120]
[326785477,1715362246682,-1009.72,0.00054794,120]
[326785478,1715362246693,-500.0,0.00054794,120]
[326785479,1715362246703,-595.37,0.0005482,120]
[326785480,1715362246711,-589.0,0.000549,30]
[326785481,1715362246721,-1000.0,0.00054987,3]
[326785482,1715362246730,-991.55469962,0.00055,4]
[326785483,1715362246741,-150.0,0.00055331,2]
[326785484,1715362246750,-150.71364408,0.00055411,2]
[326785485,1715362246761,-500.0,0.00055539,35]
[326785486,1715362246770,-160.0,0.000558,52]
[326785487,1715362246779,-150.081847,0.000558,2]
[326785488,1715362246791,-557.0,0.0005589,120]
[326785489,1715362246800,-557.0,0.0005589,120]
[326785490,1715362246812,-500.0,0.0005589,2]
[326785491,1715362246821,-557.0,0.0005589,120]
[326785492,1715362246830,-500.0,0.0005589,2]
[326785493,1715362246839,-557.0,0.0005589,120]
[326785494,1715362246849,-557.0,0.0005589,120]
[326785495,1715362246860,-557.0,0.0005589,120]
[326785496,1715362246870,-500.0,0.0005589,120]
[326785497,1715362246879,-500.0,0.0005589,120]
[326785498,1715362246889,-500.0,0.0005589,120]
[326785499,1715362246899,-500.0,0.0005589,120]
[326785500,1715362246909,-672.31,0.0005589,120]
[326785501,1715362246918,-347.53372741,0.0005589,120]
[326785502,1715362246927,-500.0,0.0005589,120]
[326785503,1715362246936,-500.0,0.0005589,120]
[326785504,1715362246945,-500.0,0.0005589,120]
[326785505,1715362246954,-642.22,0.0005589,120]
[326785506,1715362246963,-500.0,0.0005589,120]
[326785507,1715362246972,-457.52305037,0.0005589,120]
[326785508,1715362246981,-500.0,0.0005589,120]
[326785509,1715362246990,-500.0,0.0005589,120]
[326785510,1715362246999,-500.0,0.0005589,120]
[326785511,1715362247008,-500.0,0.0005589,120]
[326785512,1715362247017,-500.0,0.0005589,120]
[326785513,1715362247027,-500.0,0.0005589,120]
[326785514,1715362247036,-500.0,0.0005589,120]
[326785515,1715362247045,-500.0,0.0005589,120]
[326785516,1715362247054,-500.0,0.0005589,120]
[326785517,1715362247063,-500.0,0.0005589,120]
[326785518,1715362247073,-500.0,0.0005589,120]
[326785519,1715362247083,-500.0,0.0005589,120]
[326785520,1715362247096,-557.74,0.0005589,120]
[326785521,1715362247106,-500.0,0.0005589,120]
[326785522,1715362247188,-500.0,0.0005589,120]
[326785523,1715362247197,-500.0,0.0005589,120]
[326785524,1715362247206,-500.0,0.0005589,120]
[326785525,1715362247217,-151.0,0.0005589,120]
[326785526,1715362247226,-500.0,0.0005589,120]
[326785527,1715362247236,-500.0,0.0005589,120]
[326785528,1715362247246,-500.0,0.0005589,120]
[326785529,1715362247256,-500.0,0.0005589,120]
[326785530,1715362247265,-500.0,0.0005589,120]
[326785531,1715362247274,-500.0,0.0005589,120]
[326785532,1715362247283,-534.90652038,0.0005589,120]
[326785533,1715362247292,-500.0,0.0005589,120]
[326785534,1715362247301,-500.0,0.0005589,120]
[326785535,1715362247310,-500.0,0.0005589,120]
[326785536,1715362247321,-500.0,0.0005589,120]
[326785537,1715362247329,-500.0,0.0005589,120]
[326785538,1715362247338,-500.0,0.0005589,120]
[326785539,1715362247347,-500.0,0.0005589,120]
[326785540,1715362247356,-500.0,0.0005589,120]
[326785541,1715362247364,-500.0,0.0005589,120]
[326785542,1715362247374,-500.0,0.0005589,120]
[326785543,1715362247383,-515.25446059,0.0005589,120]
[326785544,1715362247391,-549.41945649,0.0005589,120]
[326785545,1715362247401,-502.10454873,0.0005589,120]
[326785546,1715362247410,-817.66,0.0005589,120]
[326785547,1715362247419,-500.0,0.0005589,120]
[326785548,1715362247428,-500.0,0.0005589,120]
[326785549,1715362247438,-500.0,0.0005589,120]
[326785550,1715362247447,-500.0,0.0005589,120]
[326785551,1715362247457,-500.0,0.0005589,120]
[326785552,1715362247466,-500.0,0.0005589,120]
[326785553,1715362247476,-437.44367324,0.0005589,120]
[326785554,1715362247486,-507.64514435,0.0005589,120]
[326785555,1715362247494,-500.0,0.0005589,120]
[326785556,1715362247504,-500.0,0.0005589,120]
[326785557,1715362247513,-151.0,0.0005589,3]
[326785558,1715362247522,-163.47007,0.0005589,3]
[326785559,1715362247532,-500.0,0.0005589,120]
[326785560,1715362247541,-500.0,0.0005589,120]
[326785561,1715362247550,-500.0,0.0005589,120]
[326785562,1715362247559,-500.0,0.0005589,120]
[326785563,1715362247569,-259.26902105,0.0005589,120]
[326785564,1715362247578,-248.15576047,0.0005589,120]
[326785565,1715362247587,-500.0,0.0005589,120]
[326785566,1715362247597,-590.5,0.0005589,120]
[326785567,1715362247607,-522.02,0.0005589,120]
[326785568,1715362247616,-500.0,0.0005589,120]
[326785569,1715362247626,-507.23727443,0.0005589,120]
[326785570,1715362247636,-500.0,0.0005589,120]
[326785571,1715362247646,-500.0,0.0005589,120]
[326785572,1715362247656,-300.0,0.0005589,7]
[326785573,1715362247666,-300.0,0.0005589,2]
[326785574,1715362247676,-500.0,0.0005589,120]
[326785575,1715362247685,-174.34871557,0.0005589,120]
[326785576,1715362247695,-500.0,0.0005589,120]
[326785577,1715362247704,-532.22,0.0005589,120]
[326785578,1715362247713,-500.0,0.0005589,120]
[326785579,1715362247722,-348.87593757,0.0005589,120]
[326785580,1715362247731,-500.0,0.0005589,7]
[326785581,1715362247740,-500.0,0.0005589,120]
[326785582,1715362247749,-500.0,0.0005589,120]
[326785583,1715362247758,-538.85248345,0.0005589,120]
[326785584,1715362247767,-500.0,0.0005589,120]
[326785585,1715362247776,-1469.3,0.0005589,120]
[326785586,1715362247786,-500.0,0.0005589,120]
[326785587,1715362247795,-500.0,0.0005589,120]
[326785588,1715362247804,-500.0,0.0005589,120]
[326785589,1715362247813,-607.8,0.0005589,120]
[326785590,1715362247822,-500.0,0.0005589,120]
[326785591,1715362247831,-500.0,0.0005589,120]
[326785592,1715362247840,-500.0,0.0005589,120]
[326785593,1715362247849,-506.91694575,0.0005589,120]
[326785594,1715362247858,-500.0,0.0005589,120]
[326785595,1715362247867,-500.0,0.0005589,120]
[326785596,1715362247877,-500.0,0.0005589,120]
[326785597,1715362247885,-500.0,0.0005589,120]
[326785598,1715362247894,-500.0,0.0005589,120]
[326785599,1715362247903,-1000.0,0.0005589,120]
[326785600,1715362247912,-500.0,0.0005589,120]
[326785601,1715362247922,-500.0,0.0005589,120]
[326785602,1715362247930,-500.0,0.0005589,120]
[326785603,1715362247939,-1081.85,0.0005589,120]
[326785604,1715362247948,-500.0,0.0005589,120]
[326785605,1715362247957,-500.0,0.0005589,120]
[326785606,1715362247966,-503.44,0.0005589,120]
[326785607,1715362247974,-500.0,0.0005589,120]
[326785608,1715362247983,-202.80692074,0.0005589,120]
[326785609,1715362247992,-567.99,0.0005589,120]
[326785610,1715362248001,-401.18229699,0.0005589,120]
[326785611,1715362248010,-1220.21,0.0005589,120]
[326785612,1715362248019,-500.0,0.0005589,120]
[326785613,1715362248028,-554.16,0.0005589,120]
[326785614,1715362248037,-500.0,0.0005589,120]
[326785615,1715362248046,-695.75,0.0005589,120]
[326785616,1715362248055,-500.0,0.0005589,7]
[326785617,1715362248065,-733.7,0.0005589,120]
[326785618,1715362248074,-500.0,0.0005589,120]
[326785619,1715362248083,-500.0,0.0005589,120]
[326785620,1715362248093,-500.0,0.0005589,120]
[326785621,1715362248104,-500.0,0.0005589,120]
[326785622,1715362248113,-500.0,0.0005589,120]
[326785623,1715362248122,-500.0,0.0005589,120]
[326785624,1715362248132,-500.0,0.0005589,120]
[326785625,1715362248141,-500.0,0.0005589,120]
[326785626,1715362248150,-500.0,0.0005589,120]
[326785627,1715362248159,-1148.34,0.0005589,120]
[326785628,1715362248168,-500.0,0.0005589,120]
[326785629,1715362248180,-500.0,0.0005589,120]
[326785630,1715362248191,-1925.0,0.0005589,120]
[326785631,1715362248202,-500.0,0.0005589,120]
[326785632,1715362248212,-580.5,0.0005589,120]
[326785633,1715362248221,-161.63290377,0.0005589,120]
[326785634,1715362248230,-500.0,0.0005589,120]
[326785635,1715362248239,-500.0,0.0005589,120]
[326785636,1715362248314,-500.0,0.0005589,120]
[326785637,1715362248328,-196.058026,0.0005589,120]
[326785638,1715362248338,-558.12,0.0005589,120]
[326785639,1715362248347,-500.0,0.0005589,120]
[326785640,1715362248356,-500.0,0.0005589,120]
[326785641,1715362248365,-500.0,0.0005589,120]
[326785642,1715362248374,-581.47,0.0005589,120]
[326785643,1715362248384,-500.0,0.0005589,120]
[326785644,1715362248393,-642.6,0.0005589,120]
[326785645,1715362248402,-500.0,0.0005589,120]
[326785646,1715362248412,-500.0,0.0005589,120]
[326785647,1715362248421,-500.0,0.0005589,120]
[326785648,1715362248431,-500.0,0.0005589,120]
[326785649,1715362248440,-500.0,0.0005589,120]
[326785650,1715362248449,-500.0,0.0005589,120]
[326785651,1715362248458,-500.0,0.0005589,120]
[326785652,1715362248468,-500.0,0.0005589,120]
[326785653,1715362248477,-500.0,0.0005589,120]
[326785654,1715362248486,-500.0,0.0005589,120]
[326785655,1715362248495,-500.0,0.0005589,120]
[326785656,1715362248505,-500.0,0.0005589,120]
[326785657,1715362248514,-151.0,0.0005589,120]
[326785658,1715362248524,-151.0,0.0005589,120]
[326785659,1715362248533,-151.0,0.0005589,120]
[326785660,1715362248543,-151.0,0.0005589,120]
[326785661,1715362248552,-151.0,0.0005589,120]
[326785662,1715362248563,-629.263212,0.0005589,2]
[326785663,1715362248572,-204.876778,0.0005589,120]
[326785664,1715362248581,-229.47028062,0.0005589,2]
[326785665,1715362249617,-500.0,0.00054794,120]
[326785666,1715362249627,-399.79293138,0.0005589,2]
[326785667,1715362249638,-1150.98,0.0005589,120]
[326785668,1715362249648,-629.263212,0.0005589,2]
[326785669,1715362249657,-899.68,0.0005589,120]
[326785670,1715362249666,-425.22047389,0.0005589,120]
[326785672,1715362321070,447.20436467,9.999e-05,2]
[326785684,1715362725594,469.65829869,9.999e-05,2]
[326785693,1715362765235,1400.60904381,9.999e-05,2]
[326785694,1715362769648,1681.2123987,0.00015,2]
[326785696,1715362837722,238.47421384,9.999e-05,2]
[326785699,1715362894274,492.04342234,9.999e-05,2]
[326785757,1715363114320,718.98711623,9.999e-05,2]
[326785769,1715363288286,238.47421384,9.999e-05,2]
[326785770,1715363341757,492.04342234,9.999e-05,2]
[326785778,1715363433781,-238.47421384,0.00015321,2]
[326785779,1715363433790,-1007.6961992,0.00015322,2]
[326785780,1715363433803,-547.204569,0.00015328,2]
[326785781,1715363433812,-3394.69177095,0.00015888,2]
[326785782,1715363433821,-168.890969,0.0001589,2]
[326785783,1715363433830,-159.93808077,0.00016364,2]
[326785784,1715363433838,-185.79526238,0.00016397,2]
[326785785,1715363433847,-789.75495363,0.00016397,2]
[326785786,1715363433856,-646.53463552,0.00016494,2]
[326785787,1715363433865,-22347.04122363,0.00016496,2]
[326785788,1715363433877,-36968.94861071,0.00016496,2]
[326785789,1715363433886,-24900.0,0.00016497,2]
[326785790,1715363433895,-273.52788847,0.000165,2]
[326785791,1715363433904,-230.35686114,0.00017987,2]
[326785792,1715363433913,-718.7949124,0.00017987,2]
[326785793,1715363433923,-881.8646618,0.00017989,2]
[326785794,1715363433932,-579.1753399,0.00017989,2]
[326785795,1715363433941,-3056.17446337,0.00017989,2]
[326785796,1715363433950,-940.74470998,0.00017989,2]
[326785797,1715363433959,-1578.7542886,0.00017989,2]
[326785798,1715363433968,-1623.44024738,0.00017989,2]
[326785799,1715363433977,-414.44302773,0.0001799,2]
[326785800,1715363433986,-2106.79631056,0.00017991,2]
[326785801,1715363433995,-159.93808076,0.000184,2]
[326785802,1715363434005,-604.78532662,0.000185,2]
[326785803,1715363434014,-201.0178644,0.000189,2]
[326785804,1715363434024,-187.501783,0.00019178,2]
[326785805,1715363434033,-169.993472,0.00019508,2]
[326785806,1715363434042,-319.89591584,0.000199,2]
[326785807,1715363434053,-500.0,0.00019999,2]
[326785808,1715363434062,-500.0,0.00019999,2]
[326785809,1715363434071,-880.34072255,0.0002,2]
[326785816,1715363439183,-66641.54297585,0.0002,2]
[326785818,1715363439192,-5248.75163021,0.0002,2]
[326785820,1715363439203,-48337.74030002,0.0002,2]
[326785944,1715363486054,330.512254,9.999e-05,2]
[326785988,1715363515672,154.76784823,9.999e-05,2]
[326785991,1715363525471,154.76784823,9.999e-05,2]
[326785992,1715363527080,154.76784823,9.999e-05,2]
[326785993,1715363533757,154.76784823,9.999e-05,2]
[326786015,1715363899244,1494.22027638,9.999e-05,2]
[326786020,1715364042391,238.47421384,9.999e-05,2]
[326786021,1715364047907,1400.60904381,9.999e-05,2]
[326786025,1715364119173,2149.0864058,9.999e-05,2]
[326786026,1715364129968,330.69,0.0001,7]
[326786027,1715364164118,154.76784823,9.999e-05,2]
[326786028,1715364188303,2104.72344677,0.00015,2]
[326786031,1715364304008,10000.0,0.00019,10]
[326786033,1715364314506,10000.0,0.00019,10]
[326786034,1715364336424,1000.0,0.00019,10]
[326786037,1715364361037,10000.0,0.00019,10]
[326786039,1715364389085,4825.8,0.00019,10]
[326786043,1715364444807,230.418329,9.999e-05,2]
[326786044,1715364551028,238.47421384,9.999e-05,2]
[326786065,1715364634707,-161.99734,0.0001589,2]
[326786066,1715364634717,-238.47421384,0.00017681,2]
[326786067,1715364634726,-273.602284,0.00017682,2]
[326786068,1715364634736,-154.76784823,0.00017774,2]
[326786069,1715364634745,-77.90156393,0.00017774,2]
[326786108,1715364639486,-133.67564911,0.00017774,2]
[326786110,1715364639496,-1336.45343508,0.00017775,2]
[326786112,1715364639506,-24900.0,0.00017776,2]
[326786125,1715364639621,-894.51331095,0.00018,2]
[326786127,1715364639634,-631.41143464,0.00018356,2]
[326786129,1715364639644,-457.62445395,0.00018356,2]
[326786131,1715364639653,-284.32906716,0.00018356,2]
[326786134,1715364639663,-426.77495138,0.00018356,2]
[326786135,1715364639673,-442.7239115,0.00018357,2]
[326786137,1715364639682,-150.0,0.000189,2]
[326786139,1715364639691,-169.993471,0.00019178,2]
[326786140,1715364639700,-195.34190117,0.00019898,2]
[326786141,1715364639710,-358.53585786,0.000199,2]
[326786142,1715364639719,-358.53585782,0.000199,2]
[326786143,1715364639728,-358.53585782,0.000199,2]
[326786144,1715364639737,-358.53585782,0.000199,2]
[326786145,1715364639747,-358.53585782,0.000199,2]
[326786146,1715364639756,-358.53585782,0.000199,2]
[326786147,1715364639766,-358.53585782,0.000199,2]
[326786148,1715364639776,-358.53585782,0.000199,2]
[326786149,1715364639785,-358.53585782,0.000199,2]
[326786150,1715364639794,-358.53585782,0.000199,2]
[326786151,1715364639804,-13929.48622188,0.00019997,2]
[326786152,1715364639820,-273.52788847,0.00019998,2]
[326786153,1715364639830,-604.78532662,0.00019998,2]
[326786154,1715364639839,-891.13661831,0.00019998,2]
[326786155,1715364639848,-236.07687408,0.00019998,2]
[326786156,1715364639859,-2248.69682968,0.00019998,2]
[326786157,1715364639869,-588.89976029,0.00019998,2]
[326786158,1715364639879,-158.01446209,0.00019998,2]
[326786159,1715364639889,-330.35289698,0.00019998,2]
[326786160,1715364639898,-203.70989224,0.00019998,2]
[326786161,1715364639910,-280.55234734,0.00019998,2]
[326786162,1715364639920,-309.38121286,0.00019999,2]
[326786163,1715364639930,-300.22433725,0.00019999,2]
[326786164,1715364639940,-500.0,0.00019999,2]
[326786165,1715364639950,-500.0,0.00019999,2]
[326786166,1715364639960,-500.0,0.00019999,2]
[326786167,1715364639970,-500.0,0.00019999,2]
[326786168,1715364639980,-500.0,0.00019999,2]
[326786169,1715364639990,-13307.79063179,0.0002,2]
[326786171,1715364640002,-13105.71743798,0.0002,2]
[326786172,1715364640012,-23075.84226199,0.0002,2]
[326786226,1715364644712,-20763.60764881,0.0002,2]
[326786227,1715364644722,-380.05955451,0.0002,2]
[326786228,1715364644731,-319.89591584,0.00020713,2]
[326786229,1715364644741,-17043.68422043,0.00020909,2]
[326786231,1715364644750,-287.15577891,0.0002091,2]